[Event "*** SCC Grand Prix: Titled Tuesday Blitz"]
[Site "Chess.com"]
[Date "2020.07.07"]
[Round "10"]
[White "Brave_spirit12"]
[Black "BakaPG"]
[Result "0-1"]
[WhiteElo "2500"]
[BlackElo "2665"]
[TimeControl "180+1"]
[EndTime "11:58:25 PDT"]
[Termination "BakaPG won by checkmate"]

1. e4 {[%clk 0:03:00.9]} 1... e6 {[%clk 0:02:59.5]} 2. d4 {[%clk 0:03:00.5]}
2... d5 {[%clk 0:02:58.6]} 3. Nd2 {[%clk 0:03:00.6]} 3... a6 {[%clk 0:02:57.9]}
4. Ngf3 {[%clk 0:02:53.2]} 4... Nf6 {[%clk 0:02:57.7]} 5. Bd3 {[%clk 0:02:51.1]}
5... c5 {[%clk 0:02:56.8]} 6. c3 {[%clk 0:02:51.3]} 6... Nc6 {[%clk 0:02:55.6]}
7. O-O {[%clk 0:02:49.9]} 7... Be7 {[%clk 0:02:48.2]} 8. Re1 {[%clk 0:02:45.4]}
8... O-O {[%clk 0:02:47.1]} 9. Qe2 {[%clk 0:02:44.9]} 9... b5 {[%clk 0:02:45]}
10. e5 {[%clk 0:02:43.5]} 10... Nd7 {[%clk 0:02:44.1]} 11. Nf1 {[%clk
0:02:42.3]} 11... c4 {[%clk 0:02:38.8]} 12. Bc2 {[%clk 0:02:41.8]} 12... a5
{[%clk 0:02:39.1]} 13. Ng3 {[%clk 0:02:36.8]} 13... b4 {[%clk 0:02:37.8]} 14. h3
{[%clk 0:02:33.9]} 14... a4 {[%clk 0:02:37.7]} 15. a3 {[%clk 0:02:33.6]} 15...
bxc3 {[%clk 0:02:34.2]} 16. bxc3 {[%clk 0:02:34.5]} 16... Nb6 {[%clk 0:02:32.3]}
17. Nh5 {[%clk 0:02:33.6]} 17... Na5 {[%clk 0:02:30.1]} 18. Nh2 {[%clk
0:02:32.9]} 18... Nb3 {[%clk 0:02:27.5]} 19. Rb1 {[%clk 0:02:32.3]} 19... g6
{[%clk 0:02:21.4]} 20. Nf6+ {[%clk 0:02:19.3]} 20... Bxf6 {[%clk 0:02:15.5]} 21.
exf6 {[%clk 0:02:19.8]} 21... Qxf6 {[%clk 0:02:07.4]} 22. Ng4 {[%clk 0:02:19.4]}
22... Qe7 {[%clk 0:02:06.4]} 23. Bh6 {[%clk 0:02:15.9]} 23... f5 {[%clk
0:01:52.1]} 24. Bxf8 {[%clk 0:02:11.7]} 24... Qxf8 {[%clk 0:01:52.1]} 25. Ne5
{[%clk 0:01:52.3]} 25... Qxa3 {[%clk 0:01:49.9]} 26. Nc6 {[%clk 0:01:48.4]}
26... Qd6 {[%clk 0:01:45.6]} 27. Nb4 {[%clk 0:01:35.6]} 27... Bd7 {[%clk
0:01:40.3]} 28. h4 {[%clk 0:01:29.4]} 28... Rf8 {[%clk 0:01:31.8]} 29. h5 {[%clk
0:01:24.6]} 29... g5 {[%clk 0:01:30.8]} 30. h6 {[%clk 0:01:23.2]} 30... Qe7
{[%clk 0:01:24.9]} 31. Qe5 {[%clk 0:01:13.2]} 31... Bc8 {[%clk 0:01:06.7]} 32.
Nxd5 {[%clk 0:00:59.9]} 32... Nxd5 {[%clk 0:01:05.4]} 33. Qxd5 {[%clk
0:00:59.2]} 33... Qc7 {[%clk 0:00:50.1]} 34. Qb5 {[%clk 0:00:47.7]} 34... Bd7
{[%clk 0:00:46.9]} 35. Qa6 {[%clk 0:00:41.5]} 35... Kf7 {[%clk 0:00:39.9]} 36.
d5 {[%clk 0:00:32.1]} 36... exd5 {[%clk 0:00:35.9]} 37. Re2 {[%clk 0:00:26.9]}
37... Qc6 {[%clk 0:00:28.2]} 38. Qa7 {[%clk 0:00:22.4]} 38... Ra8 {[%clk
0:00:25.7]} 39. Qe3 {[%clk 0:00:20.2]} 39... Re8 {[%clk 0:00:21.1]} 40. Qf3
{[%clk 0:00:15.5]} 40... g4 {[%clk 0:00:18.8]} 41. Rxe8 {[%clk 0:00:07.4]} 41...
gxf3 {[%clk 0:00:17.6]} 42. Rh8 {[%clk 0:00:07.9]} 42... Qxh6 {[%clk 0:00:17]}
43. Re1 {[%clk 0:00:06.2]} 43... Qg7 {[%clk 0:00:16.6]} 44. Rd8 {[%clk
0:00:05.9]} 44... Qxg2# {[%clk 0:00:16.2]} 0-1

[Event "*** SCC Grand Prix: Titled Tuesday Blitz"]
[Site "Chess.com"]
[Date "2020.07.07"]
[Round "10"]
[White "wild_cat99"]
[Black "chegueps"]
[Result "1-0"]
[WhiteElo "2604"]
[BlackElo "2429"]
[TimeControl "180+1"]
[EndTime "11:58:25 PDT"]
[Termination "wild_cat99 won by checkmate"]

1. Nf3 {[%clk 0:03:00.9]} 1... f5 {[%clk 0:02:58.7]} 2. d4 {[%clk 0:02:59.2]}
2... Nf6 {[%clk 0:02:59.1]} 3. g3 {[%clk 0:02:59.6]} 3... g6 {[%clk 0:02:59.6]}
4. Bg2 {[%clk 0:03:00.5]} 4... Bg7 {[%clk 0:03:00.4]} 5. O-O {[%clk 0:03:01.2]}
5... O-O {[%clk 0:03:01.2]} 6. b3 {[%clk 0:03:01.6]} 6... d6 {[%clk 0:03:01.9]}
7. Bb2 {[%clk 0:03:02.1]} 7... c6 {[%clk 0:02:54.3]} 8. Nbd2 {[%clk 0:03:02.4]}
8... a5 {[%clk 0:02:54.3]} 9. a4 {[%clk 0:02:59.8]} 9... Na6 {[%clk 0:02:53.2]}
10. e3 {[%clk 0:02:51.4]} 10... Nb4 {[%clk 0:02:44]} 11. Nc4 {[%clk 0:02:44.1]}
11... Nbd5 {[%clk 0:02:17.4]} 12. h4 {[%clk 0:02:23.8]} 12... b5 {[%clk
0:02:04.6]} 13. Ncd2 {[%clk 0:02:16.6]} 13... Bb7 {[%clk 0:02:02.6]} 14. Ng5
{[%clk 0:02:08.1]} 14... Qc8 {[%clk 0:01:57.8]} 15. e4 {[%clk 0:02:05]} 15...
fxe4 {[%clk 0:01:50.6]} 16. Ngxe4 {[%clk 0:02:05.9]} 16... b4 {[%clk 0:01:47.1]}
17. Kh2 {[%clk 0:02:05.2]} 17... Ng4+ {[%clk 0:01:45.8]} 18. Kg1 {[%clk
0:02:04.7]} 18... Ngf6 {[%clk 0:01:23.4]} 19. Ng5 {[%clk 0:01:52.5]} 19... c5
{[%clk 0:01:02.2]} 20. Bh3 {[%clk 0:01:48]} 20... Qb8 {[%clk 0:01:00]} 21. Ne6
{[%clk 0:01:46.7]} 21... Nc3 {[%clk 0:00:57.6]} 22. Bxc3 {[%clk 0:01:42.1]}
22... bxc3 {[%clk 0:00:58.5]} 23. Nc4 {[%clk 0:01:43]} 23... Ne4 {[%clk
0:00:48.1]} 24. Nxf8 {[%clk 0:01:35.2]} 24... Qxf8 {[%clk 0:00:49]} 25. d5
{[%clk 0:01:32.1]} 25... Bd4 {[%clk 0:00:46.6]} 26. Be6+ {[%clk 0:01:32.2]}
26... Kh8 {[%clk 0:00:44]} 27. Qd3 {[%clk 0:01:32.2]} 27... Nd2 {[%clk
0:00:38.4]} 28. Nxd2 {[%clk 0:01:22.3]} 28... cxd2 {[%clk 0:00:38.3]} 29. c3
{[%clk 0:01:22.6]} 29... Ba6 {[%clk 0:00:37.8]} 30. Qxd2 {[%clk 0:01:11.3]}
30... Bxf1 {[%clk 0:00:36.8]} 31. Rxf1 {[%clk 0:01:11.5]} 31... Bf6 {[%clk
0:00:30]} 32. Re1 {[%clk 0:01:10.8]} 32... Qb8 {[%clk 0:00:29.7]} 33. Qc2 {[%clk
0:01:05.1]} 33... c4 {[%clk 0:00:29.5]} 34. Rb1 {[%clk 0:01:00.1]} 34... cxb3
{[%clk 0:00:27.2]} 35. Rxb3 {[%clk 0:01:01]} 35... Qc7 {[%clk 0:00:28]} 36. c4
{[%clk 0:00:59.2]} 36... Rb8 {[%clk 0:00:26.6]} 37. Rb5 {[%clk 0:00:58.1]} 37...
Rxb5 {[%clk 0:00:16.4]} 38. axb5 {[%clk 0:00:59]} 38... Qb6 {[%clk 0:00:15.5]}
39. Kg2 {[%clk 0:00:55.3]} 39... Bd4 {[%clk 0:00:14.4]} 40. Qe4 {[%clk
0:00:48.1]} 40... a4 {[%clk 0:00:11.4]} 41. Qf4 {[%clk 0:00:46.7]} 41... Bf6
{[%clk 0:00:11.6]} 42. Qh6 {[%clk 0:00:44.2]} 42... Bg7 {[%clk 0:00:11.5]} 43.
Qf4 {[%clk 0:00:41.2]} 43... Bf6 {[%clk 0:00:12.1]} 44. c5 {[%clk 0:00:40.1]}
44... Qxc5 {[%clk 0:00:10.5]} 45. Qxa4 {[%clk 0:00:39.7]} 45... Kg7 {[%clk
0:00:09.3]} 46. Qa6 {[%clk 0:00:36.2]} 46... Qc2 {[%clk 0:00:08.8]} 47. Qc8
{[%clk 0:00:28.9]} 47... Qe4+ {[%clk 0:00:08.5]} 48. Kh2 {[%clk 0:00:27.7]}
48... Qe2 {[%clk 0:00:02.9]} 49. Qg8+ {[%clk 0:00:27.7]} 49... Kh6 {[%clk
0:00:03.4]} 50. Qf8+ {[%clk 0:00:27.5]} 50... Bg7 {[%clk 0:00:04]} 51. Qf4+
{[%clk 0:00:26.3]} 51... Kh5 {[%clk 0:00:03.8]} 52. Qg5# {[%clk 0:00:26]} 1-0

[Event "*** SCC Grand Prix: Titled Tuesday Blitz"]
[Site "Chess.com"]
[Date "2020.07.07"]
[Round "10"]
[White "temus_galaktionov"]
[Black "Skatchkov_V"]
[Result "0-1"]
[WhiteElo "2662"]
[BlackElo "2565"]
[TimeControl "180+1"]
[EndTime "11:58:26 PDT"]
[Termination "Skatchkov_V won by resignation"]

1. d4 {[%clk 0:03:00.9]} 1... Nf6 {[%clk 0:02:56.9]} 2. Nf3 {[%clk 0:03:01]}
2... e6 {[%clk 0:02:57.3]} 3. c4 {[%clk 0:03:01]} 3... b6 {[%clk 0:02:57]} 4. g3
{[%clk 0:03:00.7]} 4... Bb7 {[%clk 0:02:57.5]} 5. Bg2 {[%clk 0:03:00.3]} 5...
Be7 {[%clk 0:02:57.9]} 6. Nc3 {[%clk 0:03:00.1]} 6... O-O {[%clk 0:02:58.1]} 7.
Bd2 {[%clk 0:02:59.5]} 7... c5 {[%clk 0:02:38.9]} 8. d5 {[%clk 0:02:59.2]} 8...
exd5 {[%clk 0:02:38.7]} 9. Nh4 {[%clk 0:02:59.2]} 9... Ne4 {[%clk 0:02:37]} 10.
Nf5 {[%clk 0:02:49]} 10... Bf6 {[%clk 0:02:24.6]} 11. cxd5 {[%clk 0:02:46.1]}
11... Nxd2 {[%clk 0:01:59.8]} 12. Qxd2 {[%clk 0:02:47]} 12... d6 {[%clk
0:01:59.9]} 13. Ne4 {[%clk 0:02:33]} 13... Be7 {[%clk 0:01:47.9]} 14. Qf4 {[%clk
0:02:22.6]} 14... Bf6 {[%clk 0:01:18.4]} 15. Nfxd6 {[%clk 0:02:00]} 15... Ba6
{[%clk 0:00:55.4]} 16. Nxf6+ {[%clk 0:01:59.4]} 16... Qxf6 {[%clk 0:00:56.3]}
17. Qxf6 {[%clk 0:01:59.2]} 17... gxf6 {[%clk 0:00:56.9]} 18. e4 {[%clk
0:01:59.2]} 18... Nd7 {[%clk 0:00:53.1]} 19. f4 {[%clk 0:01:58.8]} 19... Rad8
{[%clk 0:00:52.2]} 20. Nf5 {[%clk 0:01:57.4]} 20... Rfe8 {[%clk 0:00:50.7]} 21.
Kf2 {[%clk 0:01:56.8]} 21... c4 {[%clk 0:00:46.9]} 22. b4 {[%clk 0:01:52.9]}
22... cxb3 {[%clk 0:00:38.6]} 23. axb3 {[%clk 0:01:53.8]} 23... Nc5 {[%clk
0:00:39.5]} 24. b4 {[%clk 0:01:36.7]} 24... Nd3+ {[%clk 0:00:38.6]} 25. Kf3
{[%clk 0:01:28.2]} 25... Nxb4 {[%clk 0:00:35.1]} 26. Ra4 {[%clk 0:01:27.4]}
26... Rxd5 {[%clk 0:00:10.1]} 27. exd5 {[%clk 0:01:14.6]} 27... Be2+ {[%clk
0:00:09.6]} 28. Kf2 {[%clk 0:01:14.5]} 28... Nd3+ {[%clk 0:00:10.5]} 29. Kg1
{[%clk 0:01:14.3]} 29... Bd1 {[%clk 0:00:11.4]} 30. h4 {[%clk 0:01:13.7]} 30...
Bxa4 {[%clk 0:00:11.1]} 31. Kh2 {[%clk 0:01:10.7]} 31... Bd7 {[%clk 0:00:11.6]}
32. Nd6 {[%clk 0:01:07.8]} 32... Re2 {[%clk 0:00:11]} 33. Ra1 {[%clk 0:00:52.9]}
33... Ne1 {[%clk 0:00:11.3]} 34. Rxa7 {[%clk 0:00:34.3]} 34... Rxg2+ {[%clk
0:00:12.2]} 35. Kh1 {[%clk 0:00:34.3]} 35... Bg4 {[%clk 0:00:11.3]} 36. f5
{[%clk 0:00:20.4]} 36... Bf3 {[%clk 0:00:11]} 37. Nxf7 {[%clk 0:00:10.5]} 37...
Ra2+ {[%clk 0:00:10.4]} 0-1

[Event "*** SCC Grand Prix: Titled Tuesday Blitz"]
[Site "Chess.com"]
[Date "2020.07.07"]
[Round "10"]
[White "vanImpe"]
[Black "Munkhzul_Turmunkh"]
[Result "0-1"]
[WhiteElo "2449"]
[BlackElo "2605"]
[TimeControl "180+1"]
[EndTime "11:58:26 PDT"]
[Termination "Munkhzul_Turmunkh won by resignation"]

1. g3 {[%clk 0:03:00.9]} 1... Nf6 {[%clk 0:02:57.3]} 2. Bg2 {[%clk 0:03:01.3]}
2... d5 {[%clk 0:02:56.2]} 3. c4 {[%clk 0:03:00.6]} 3... e6 {[%clk 0:02:54.8]}
4. Nf3 {[%clk 0:03:00.7]} 4... Be7 {[%clk 0:02:54.8]} 5. O-O {[%clk 0:03:01.2]}
5... O-O {[%clk 0:02:54.4]} 6. d4 {[%clk 0:03:01.9]} 6... dxc4 {[%clk
0:02:54.2]} 7. Nbd2 {[%clk 0:03:02]} 7... b5 {[%clk 0:02:29.3]} 8. a4 {[%clk
0:03:02]} 8... c6 {[%clk 0:02:28.5]} 9. Ne5 {[%clk 0:03:01.1]} 9... Nd5 {[%clk
0:02:25.9]} 10. e4 {[%clk 0:03:01.6]} 10... Nb4 {[%clk 0:02:17.1]} 11. d5 {[%clk
0:03:01.7]} 11... exd5 {[%clk 0:02:13.3]} 12. exd5 {[%clk 0:03:01.9]} 12... Nxd5
{[%clk 0:02:04.8]} 13. axb5 {[%clk 0:03:00]} 13... cxb5 {[%clk 0:01:27]} 14.
Ndxc4 {[%clk 0:02:58.7]} 14... Be6 {[%clk 0:01:10.7]} 15. Ne3 {[%clk 0:02:58.1]}
15... Bf6 {[%clk 0:00:37.7]} 16. Nxd5 {[%clk 0:02:47.6]} 16... Bxe5 {[%clk
0:00:27.4]} 17. Nf4 {[%clk 0:02:48.1]} 17... Bxf4 {[%clk 0:00:12.5]} 18. Qxd8
{[%clk 0:02:39.7]} 18... Rxd8 {[%clk 0:00:13.4]} 19. Bxf4 {[%clk 0:02:39.7]}
19... Nd7 {[%clk 0:00:12.9]} 20. Bxa8 {[%clk 0:02:37]} 20... Rxa8 {[%clk
0:00:13.8]} 21. Ra5 {[%clk 0:02:31.5]} 21... Bc4 {[%clk 0:00:10.5]} 22. Rd1
{[%clk 0:02:30.4]} 22... Nf6 {[%clk 0:00:08.2]} 23. f3 {[%clk 0:02:27.8]} 23...
h6 {[%clk 0:00:07.8]} 24. Be5 {[%clk 0:02:23.4]} 24... Nd5 {[%clk 0:00:07.3]}
25. Kf2 {[%clk 0:02:10.1]} 25... Re8 {[%clk 0:00:06.6]} 26. f4 {[%clk
0:01:34.7]} 26... f6 {[%clk 0:00:06.3]} 27. Bd4 {[%clk 0:01:33.1]} 27... Re2+
{[%clk 0:00:05.8]} 28. Kf3 {[%clk 0:01:33.2]} 28... Rxh2 {[%clk 0:00:05.9]} 29.
Re1 {[%clk 0:01:27.7]} 29... h5 {[%clk 0:00:04.5]} 30. Rxa7 {[%clk 0:01:25.4]}
30... Rd2 {[%clk 0:00:03.9]} 31. Bc3 {[%clk 0:01:20.9]} 31... Nxc3 {[%clk
0:00:03.6]} 32. bxc3 {[%clk 0:01:20.5]} 32... Rd3+ {[%clk 0:00:04]} 33. Kf2
{[%clk 0:01:19.5]} 33... Rxc3 {[%clk 0:00:03.5]} 34. Ree7 {[%clk 0:01:19.4]}
34... Rc2+ {[%clk 0:00:03.5]} 35. Kg1 {[%clk 0:01:16.8]} 35... Rc1+ {[%clk
0:00:03.1]} 36. Kh2 {[%clk 0:01:14.2]} 36... Bd5 {[%clk 0:00:02.4]} 37. Rxg7+
{[%clk 0:01:12.1]} 37... Kf8 {[%clk 0:00:02.4]} 38. g4 {[%clk 0:01:08.5]} 38...
h4 {[%clk 0:00:02.7]} 39. Rgf7+ {[%clk 0:00:53.2]} 39... Bxf7 {[%clk 0:00:02.7]}
40. g5 {[%clk 0:00:54.1]} 40... fxg5 {[%clk 0:00:02.7]} 41. fxg5 {[%clk
0:00:53.6]} 41... Bd5 {[%clk 0:00:03.3]} 42. Kh3 {[%clk 0:00:53.7]} 42... Rc4
{[%clk 0:00:02.1]} 43. g6 {[%clk 0:00:52.7]} 43... Be6+ {[%clk 0:00:02.5]} 44.
Kg2 {[%clk 0:00:51.9]} 44... b4 {[%clk 0:00:03.4]} 45. Rh7 {[%clk 0:00:47.5]}
45... Kg8 {[%clk 0:00:03.4]} 46. Re7 {[%clk 0:00:40.1]} 46... Bd5+ {[%clk
0:00:03.8]} 47. Kh2 {[%clk 0:00:39.9]} 47... b3 {[%clk 0:00:04.7]} 48. Rd7
{[%clk 0:00:39.2]} 48... b2 {[%clk 0:00:04.8]} 49. Rxd5 {[%clk 0:00:39.1]} 49...
b1=Q {[%clk 0:00:05]} 50. Rd8+ {[%clk 0:00:39.9]} 50... Kg7 {[%clk 0:00:04.8]}
51. Rd6 {[%clk 0:00:39.2]} 51... Qc2+ {[%clk 0:00:04]} 52. Kh3 {[%clk
0:00:39.2]} 52... Qf5+ {[%clk 0:00:04.1]} 0-1

[Event "*** SCC Grand Prix: Titled Tuesday Blitz"]
[Site "Chess.com"]
[Date "2020.07.07"]
[Round "10"]
[White "viktorskliarov"]
[Black "Manukyan_Artak"]
[Result "1-0"]
[WhiteElo "2524"]
[BlackElo "2367"]
[TimeControl "180+1"]
[EndTime "11:58:28 PDT"]
[Termination "viktorskliarov won on time"]

1. e4 {[%clk 0:02:58.1]} 1... c6 {[%clk 0:03:00.2]} 2. d4 {[%clk 0:02:57.7]}
2... d5 {[%clk 0:03:00.6]} 3. e5 {[%clk 0:02:58.1]} 3... Bf5 {[%clk 0:03:00.2]}
4. Nf3 {[%clk 0:02:58.1]} 4... e6 {[%clk 0:03:00.3]} 5. Be2 {[%clk 0:02:58.4]}
5... c5 {[%clk 0:03:00.5]} 6. Be3 {[%clk 0:02:57.3]} 6... Nd7 {[%clk 0:02:59.9]}
7. O-O {[%clk 0:02:54.7]} 7... Ne7 {[%clk 0:02:59.9]} 8. c3 {[%clk 0:02:55.1]}
8... Nc6 {[%clk 0:02:59.6]} 9. a3 {[%clk 0:02:48.2]} 9... c4 {[%clk 0:02:28.5]}
10. Nbd2 {[%clk 0:02:46.8]} 10... Na5 {[%clk 0:02:21.5]} 11. Qc1 {[%clk
0:02:45.3]} 11... Be7 {[%clk 0:02:15.8]} 12. Bd1 {[%clk 0:02:32.3]} 12... O-O
{[%clk 0:02:13.8]} 13. Bc2 {[%clk 0:02:32.1]} 13... Bxc2 {[%clk 0:02:11.4]} 14.
Qxc2 {[%clk 0:02:33]} 14... b5 {[%clk 0:01:59.8]} 15. Ne1 {[%clk 0:02:25.5]}
15... g6 {[%clk 0:01:52.2]} 16. f4 {[%clk 0:02:22]} 16... Nc6 {[%clk 0:01:42.9]}
17. g4 {[%clk 0:02:19.7]} 17... f5 {[%clk 0:01:36.3]} 18. exf6 {[%clk 0:02:18]}
18... Nxf6 {[%clk 0:01:36.3]} 19. h3 {[%clk 0:02:17.5]} 19... Qd7 {[%clk
0:01:31.5]} 20. Kg2 {[%clk 0:02:10.4]} 20... a5 {[%clk 0:01:31]} 21. Nef3 {[%clk
0:01:57.4]} 21... a4 {[%clk 0:01:18.3]} 22. Ne5 {[%clk 0:01:47.8]} 22... Nxe5
{[%clk 0:01:15.7]} 23. fxe5 {[%clk 0:01:47.6]} 23... Ne8 {[%clk 0:01:15]} 24.
Bh6 {[%clk 0:01:47]} 24... Ng7 {[%clk 0:01:09.2]} 25. Nf3 {[%clk 0:01:40]} 25...
Rf7 {[%clk 0:01:05.5]} 26. Ng5 {[%clk 0:01:39.5]} 26... Bxg5 {[%clk 0:01:04.4]}
27. Bxg5 {[%clk 0:01:39.2]} 27... Rxf1 {[%clk 0:00:56.9]} 28. Rxf1 {[%clk
0:01:37.8]} 28... Rf8 {[%clk 0:00:57.8]} 29. Bf6 {[%clk 0:01:26.9]} 29... Ne8
{[%clk 0:00:54.2]} 30. Qd2 {[%clk 0:01:24.4]} 30... Nxf6 {[%clk 0:00:50.1]} 31.
exf6 {[%clk 0:01:20]} 31... Qf7 {[%clk 0:00:35.7]} 32. Qf4 {[%clk 0:00:46.9]}
32... Rd8 {[%clk 0:00:30.1]} 33. Qe5 {[%clk 0:00:43.7]} 33... h6 {[%clk
0:00:23.4]} 34. h4 {[%clk 0:00:41.9]} 34... Kh7 {[%clk 0:00:22.6]} 35. Kf2
{[%clk 0:00:27.2]} 35... Rf8 {[%clk 0:00:19.4]} 36. Ke2 {[%clk 0:00:27.1]} 36...
Re8 {[%clk 0:00:19.1]} 37. Rf3 {[%clk 0:00:25.4]} 37... Kg8 {[%clk 0:00:16.7]}
38. h5 {[%clk 0:00:22]} 38... g5 {[%clk 0:00:15.8]} 39. Qd6 {[%clk 0:00:19.9]}
39... Kh8 {[%clk 0:00:12.4]} 40. Kd2 {[%clk 0:00:16.5]} 40... Qh7 {[%clk
0:00:11.2]} 41. f7 {[%clk 0:00:16]} 1-0

[Event "*** SCC Grand Prix: Titled Tuesday Blitz"]
[Site "Chess.com"]
[Date "2020.07.07"]
[Round "10"]
[White "AttilaTurzo"]
[Black "ZverevLev"]
[Result "1-0"]
[WhiteElo "2514"]
[BlackElo "2367"]
[TimeControl "180+1"]
[EndTime "11:58:31 PDT"]
[Termination "AttilaTurzo won by resignation"]

1. e4 {[%clk 0:03:00.9]} 1... e5 {[%clk 0:02:57.6]} 2. Nf3 {[%clk 0:03:00.4]}
2... Nc6 {[%clk 0:02:55.7]} 3. Bb5 {[%clk 0:03:00.5]} 3... a6 {[%clk 0:02:53.9]}
4. Ba4 {[%clk 0:03:00.3]} 4... Nf6 {[%clk 0:02:52.6]} 5. O-O {[%clk 0:03:00.4]}
5... Be7 {[%clk 0:02:51.7]} 6. Re1 {[%clk 0:03:00.7]} 6... b5 {[%clk 0:02:50.4]}
7. Bb3 {[%clk 0:03:00.7]} 7... d6 {[%clk 0:02:51.1]} 8. c3 {[%clk 0:02:59.8]}
8... O-O {[%clk 0:02:49.9]} 9. h3 {[%clk 0:03:00]} 9... Na5 {[%clk 0:02:48.7]}
10. Bc2 {[%clk 0:02:59.4]} 10... c5 {[%clk 0:02:49.3]} 11. d4 {[%clk 0:02:59.5]}
11... cxd4 {[%clk 0:02:48.4]} 12. cxd4 {[%clk 0:02:59.2]} 12... Bb7 {[%clk
0:02:49.3]} 13. d5 {[%clk 0:02:52.4]} 13... Nc4 {[%clk 0:02:46.5]} 14. b3 {[%clk
0:02:48.4]} 14... Nb6 {[%clk 0:02:45.7]} 15. a4 {[%clk 0:02:39]} 15... bxa4
{[%clk 0:02:41.7]} 16. bxa4 {[%clk 0:02:39.3]} 16... a5 {[%clk 0:02:40.4]} 17.
Bd3 {[%clk 0:02:37.9]} 17... Rc8 {[%clk 0:02:38.8]} 18. Na3 {[%clk 0:02:35.1]}
18... Nfd7 {[%clk 0:02:23.4]} 19. Bd2 {[%clk 0:02:29.7]} 19... Nc5 {[%clk
0:02:21.2]} 20. Bxa5 {[%clk 0:02:29.7]} 20... Ra8 {[%clk 0:02:14.7]} 21. Nc4
{[%clk 0:02:24.3]} 21... Nxc4 {[%clk 0:02:00.9]} 22. Bxd8 {[%clk 0:02:19.3]}
22... Nb2 {[%clk 0:01:59.4]} 23. Qc2 {[%clk 0:02:08.8]} 23... Bxd8 {[%clk
0:01:52.3]} 24. Bb5 {[%clk 0:02:04.9]} 24... Ba5 {[%clk 0:01:45.3]} 25. Reb1
{[%clk 0:01:59.5]} 25... Rfc8 {[%clk 0:01:35.5]} 26. Rxb2 {[%clk 0:01:45.7]}
26... Na6 {[%clk 0:01:24.4]} 27. Bc6 {[%clk 0:01:33.6]} 27... Bxc6 {[%clk
0:01:22.4]} 28. dxc6 {[%clk 0:01:34.5]} 28... Nb4 {[%clk 0:01:21.9]} 29. Rxb4
{[%clk 0:01:05.1]} 29... Bxb4 {[%clk 0:01:21.2]} 30. c7 {[%clk 0:01:00.3]} 30...
Bc5 {[%clk 0:01:17.9]} 31. Qb3 {[%clk 0:00:51.2]} 31... Rxc7 {[%clk 0:01:16.2]}
32. a5 {[%clk 0:00:51.4]} 32... h6 {[%clk 0:01:14.6]} 33. a6 {[%clk 0:00:51.3]}
33... Rca7 {[%clk 0:01:12.5]} 34. Qb5 {[%clk 0:00:49]} 34... Kh7 {[%clk
0:01:08.6]} 35. Nd2 {[%clk 0:00:48]} 35... Rc7 {[%clk 0:01:04.7]} 36. Nc4 {[%clk
0:00:46.5]} 36... Bd4 {[%clk 0:00:49.2]} 37. Ra2 {[%clk 0:00:44.1]} 37... Rc5
{[%clk 0:00:45.9]} 38. Qb7 {[%clk 0:00:39.9]} 38... Rcc8 {[%clk 0:00:32.4]} 39.
Nxd6 {[%clk 0:00:33]} 39... Rcb8 {[%clk 0:00:29.8]} 40. Qxf7 {[%clk 0:00:26.1]}
40... Rf8 {[%clk 0:00:28.5]} 41. Qd5 {[%clk 0:00:22.3]} 41... Rad8 {[%clk
0:00:26.7]} 42. a7 {[%clk 0:00:21.5]} 42... Ra8 {[%clk 0:00:24.4]} 43. Nb5
{[%clk 0:00:19.8]} 43... Bb6 {[%clk 0:00:18.3]} 44. Qc6 {[%clk 0:00:19]} 44...
Bd4 {[%clk 0:00:16.2]} 45. Nxd4 {[%clk 0:00:17.4]} 45... exd4 {[%clk 0:00:17.1]}
46. Qd5 {[%clk 0:00:17.3]} 46... Rfd8 {[%clk 0:00:15.7]} 47. Qxd8 {[%clk
0:00:17.4]} 47... Rxd8 {[%clk 0:00:16.3]} 48. a8=Q {[%clk 0:00:17.1]} 48... Rd7
{[%clk 0:00:17.2]} 49. Qa4 {[%clk 0:00:15.4]} 49... d3 {[%clk 0:00:18.1]} 50.
Rd2 {[%clk 0:00:15.7]} 1-0

[Event "*** SCC Grand Prix: Titled Tuesday Blitz"]
[Site "Chess.com"]
[Date "2020.07.07"]
[Round "10"]
[White "JiiHart"]
[Black "queen_iryna"]
[Result "0-1"]
[WhiteElo "2111"]
[BlackElo "2238"]
[TimeControl "180+1"]
[EndTime "11:58:31 PDT"]
[Termination "queen_iryna won on time"]

1. e4 {[%clk 0:03:00.9]} 1... d6 {[%clk 0:02:59.1]} 2. d4 {[%clk 0:03:00.2]}
2... Nf6 {[%clk 0:02:56.2]} 3. Nc3 {[%clk 0:03:00]} 3... e5 {[%clk 0:02:56.4]}
4. dxe5 {[%clk 0:02:52.9]} 4... dxe5 {[%clk 0:02:57.3]} 5. Qxd8+ {[%clk
0:02:52.9]} 5... Kxd8 {[%clk 0:02:58.2]} 6. Bc4 {[%clk 0:02:51.8]} 6... Ke8
{[%clk 0:02:56.1]} 7. Bg5 {[%clk 0:02:48.3]} 7... Bb4 {[%clk 0:02:44.6]} 8. Bxf6
{[%clk 0:02:25.2]} 8... gxf6 {[%clk 0:02:44]} 9. Ne2 {[%clk 0:02:24.4]} 9... c6
{[%clk 0:02:40.4]} 10. O-O {[%clk 0:02:10.4]} 10... Be6 {[%clk 0:02:38.7]} 11.
Bxe6 {[%clk 0:01:52.1]} 11... fxe6 {[%clk 0:02:39.6]} 12. f4 {[%clk 0:01:52.1]}
12... exf4 {[%clk 0:02:27.4]} 13. Rxf4 {[%clk 0:01:50.5]} 13... Nd7 {[%clk
0:02:24.6]} 14. Raf1 {[%clk 0:01:46.6]} 14... Ke7 {[%clk 0:02:22.5]} 15. a3
{[%clk 0:01:43]} 15... Bc5+ {[%clk 0:02:21.8]} 16. Kh1 {[%clk 0:01:43.3]} 16...
Rhg8 {[%clk 0:02:18.3]} 17. b4 {[%clk 0:01:29]} 17... Bb6 {[%clk 0:02:14.4]} 18.
Nd1 {[%clk 0:01:09.1]} 18... a5 {[%clk 0:02:12.4]} 19. bxa5 {[%clk 0:00:43.2]}
19... Rxa5 {[%clk 0:02:13.3]} 20. R4f3 {[%clk 0:00:41.3]} 20... Rg6 {[%clk
0:01:57.3]} 21. Nf2 {[%clk 0:00:36.9]} 21... Ne5 {[%clk 0:01:55.9]} 22. Rh3
{[%clk 0:00:35]} 22... Rg7 {[%clk 0:01:49]} 23. Nf4 {[%clk 0:00:33.2]} 23... Rb5
{[%clk 0:01:39.3]} 24. Nh5 {[%clk 0:00:30.7]} 24... Rg8 {[%clk 0:01:34.4]} 25.
Rb3 {[%clk 0:00:27.4]} 25... Rxb3 {[%clk 0:01:28.1]} 26. cxb3 {[%clk 0:00:27.7]}
26... Rd8 {[%clk 0:01:28.3]} 27. Nh3 {[%clk 0:00:21.7]} 27... Ng4 {[%clk
0:01:23.1]} 28. N3f4 {[%clk 0:00:18.3]} 28... Nf2+ {[%clk 0:01:20.6]} 29. Kg1
{[%clk 0:00:17.6]} 29... Nxe4+ {[%clk 0:01:16.3]} 30. Kh1 {[%clk 0:00:17.6]}
30... e5 {[%clk 0:00:55.4]} 31. Ne2 {[%clk 0:00:17.2]} 31... Rd2 {[%clk
0:00:49.9]} 32. Nhg3 {[%clk 0:00:12.9]} 32... Nxg3+ {[%clk 0:00:43.5]} 33. Nxg3
{[%clk 0:00:13.1]} 33... Rd3 {[%clk 0:00:41.3]} 34. Nf5+ {[%clk 0:00:11.4]}
34... Kd7 {[%clk 0:00:41.1]} 35. g4 {[%clk 0:00:08.9]} 35... Rxb3 {[%clk
0:00:39.7]} 36. Ng3 {[%clk 0:00:06.2]} 36... Ke6 {[%clk 0:00:37.7]} 37. Rd1
{[%clk 0:00:05.7]} 37... Rxa3 {[%clk 0:00:33.8]} 38. Nf5 {[%clk 0:00:05.5]}
38... Bd4 {[%clk 0:00:33.6]} 39. Rb1 {[%clk 0:00:04.8]} 39... b5 {[%clk
0:00:33.2]} 40. h4 {[%clk 0:00:04.5]} 40... Kd5 {[%clk 0:00:32.3]} 41. Rf1
{[%clk 0:00:03.3]} 41... Ra1 {[%clk 0:00:32.1]} 42. Kg2 {[%clk 0:00:01.6]} 42...
Rxf1 {[%clk 0:00:31.2]} 43. Kxf1 {[%clk 0:00:01.9]} 43... b4 {[%clk 0:00:32.1]}
44. Ke2 {[%clk 0:00:02.2]} 44... b3 {[%clk 0:00:31.9]} 45. Kd3 {[%clk
0:00:02.3]} 45... b2 {[%clk 0:00:31.9]} 46. Kc2 {[%clk 0:00:02.2]} 46... c5
{[%clk 0:00:30.8]} 47. g5 {[%clk 0:00:02.5]} 47... fxg5 {[%clk 0:00:29.6]} 48.
hxg5 {[%clk 0:00:02.9]} 48... e4 {[%clk 0:00:28.1]} 49. Ne7+ {[%clk 0:00:01.4]}
49... Ke6 {[%clk 0:00:26.3]} 0-1